fUSD/lending_fUSD_20250213
["ID","MTS","AMOUNT","RATE_DAILY","PERIOD"]
[352983840,1739475055311,-280.632554,0.00013699,2]
[352983841,1739475055320,-280.632554,0.00013699,2]
[352983842,1739475055330,-280.632554,0.00013699,2]
[352983844,1739475055339,-280.632554,0.00013699,2]
[352983846,1739475055348,-280.632554,0.00013699,2]
[352983848,1739475055357,-280.632554,0.00013699,2]
[352983850,1739475055367,-280.632554,0.00013699,2]
[352983852,1739475055376,-280.632554,0.00013699,2]
[352983854,1739475055385,-280.632554,0.00013699,2]
[352983856,1739475055394,-280.632554,0.00013699,2]
[352983858,1739475055403,-280.632554,0.00013699,2]
[352983860,1739475055413,-200.0,0.00013699,2]
[352983862,1739475055422,-237.57,0.00013699,2]
[352983864,1739475055431,-151.0,0.00013699,2]
[352983866,1739475055441,-151.0,0.00013699,2]
[352983868,1739475055450,-151.0,0.00013699,2]
[352983870,1739475055460,-151.0,0.00013699,2]
[352983872,1739475055471,-747.0,0.000137,2]
[352983873,1739475055482,-231.0,0.000137,2]
[352983875,1739475055491,-500.0,0.000137,5]
[352983877,1739475055501,-367.0,0.000137,2]
[352983879,1739475055511,-21270.84024426,0.00013708,2]
[352983881,1739475055520,-280.632554,0.00013708,2]
[352983884,1739475055529,-280.632555,0.00013708,2]
[352983886,1739475055539,-360.90886,0.00013708,2]
[352983887,1739475055549,-360.90886,0.00013708,2]
[352983890,1739475055559,-789.536407,0.00013708,2]
[352983891,1739475055568,-789.536407,0.00013708,2]
[352983894,1739475055578,-190.054601,0.00013708,2]
[352983895,1739475055587,-190.054601,0.00013708,2]
[352983897,1739475055596,-151.0,0.00013708,2]
[352983899,1739475055605,-750.073748,0.00013708,2]
[352983901,1739475055615,-750.073748,0.00013708,2]
[352983903,1739475055624,-329.90947682,0.00013724,2]
[352983905,1739475055634,-500.0,0.00013725,2]
[352983907,1739475055644,-500.0,0.00013725,2]
[352983909,1739475055654,-3472.0,0.00013725,2]
[352983911,1739475055663,-150.0,0.00013725,2]
[352983913,1739475055672,-2577.652306,0.00013726,2]
[352983915,1739475055682,-2577.652306,0.00013726,2]
[352983917,1739475055691,-3475.390041,0.00013726,2]
[352983919,1739475055701,-3475.390041,0.00013726,2]
[352983921,1739475055710,-277.912437,0.00013726,2]
[352983923,1739475055719,-277.912437,0.00013726,2]
[352983925,1739475055728,-1797.1567807,0.00013726,2]
[352983927,1739475055739,-151.0,0.00013735,2]
[352983929,1739475055748,-178.000446,0.00013735,2]
[352983931,1739475055757,-178.000446,0.00013735,2]
[352983933,1739475055769,-21270.84024426,0.00013735,2]
[352983935,1739475055779,-500.0,0.00013753,2]
[352983937,1739475055788,-500.0,0.00013753,2]
[352983939,1739475055798,-3472.0,0.00013753,2]
[352983942,1739475055807,-150.0,0.00013753,2]
[352983943,1739475055817,-16138.0,0.00013753,2]
[352983946,1739475055827,-21270.84024426,0.00013763,2]
[352983947,1739475055837,-183.11202734,0.00013763,2]
[352983949,1739475055846,-780.61487013,0.00013763,2]
[352983951,1739475055856,-173.51775995,0.00013763,2]
[352983953,1739475055866,-1891.06112278,0.00013763,2]
[352983955,1739475055876,-164.71097768,0.00013765,2]
[352983957,1739475055885,-361.84698283,0.00013765,2]
[352983959,1739475055894,-500.0,0.00013772,2]
[352983961,1739475055904,-707.54,0.00013772,2]
[352983963,1739475055914,-500.0,0.00013773,2]
[352983965,1739475055923,-500.0,0.00013773,2]
[352983967,1739475055933,-261.48801769,0.00013773,2]
[352983969,1739475055942,-151.0,0.00013773,2]
[352983971,1739475055952,-151.0,0.00013773,2]
[352983973,1739475055961,-1244.854476,0.00013773,2]
[352983975,1739475055971,-1244.854476,0.00013773,2]
[352983977,1739475055979,-500.0,0.00013779,2]
[352983979,1739475055989,-500.0,0.00013779,2]
[352983981,1739475055998,-500.0,0.00013779,2]
[352983983,1739475056007,-500.0,0.00013779,2]
[352983985,1739475056016,-500.0,0.00013779,2]
[352983987,1739475056026,-360.90886,0.00013779,2]
[352983989,1739475056035,-360.90886,0.00013779,2]
[352983991,1739475056044,-789.536407,0.00013779,2]
[352983993,1739475056054,-789.536407,0.00013779,2]
[352983995,1739475056063,-190.054601,0.00013779,2]
[352983997,1739475056072,-190.054601,0.00013779,2]
[352983999,1739475056081,-188.01553282,0.00013779,2]
[352984001,1739475056090,-3995.37,0.00013779,2]
[352984003,1739475056100,-750.073748,0.00013779,2]
[352984005,1739475056112,-750.073748,0.00013779,2]
[352984007,1739475056121,-707.54,0.00013779,2]
[352984009,1739475056130,-707.54,0.00013779,2]
[352984011,1739475056139,-707.54,0.00013779,2]
[352984013,1739475056149,-707.54,0.00013779,2]
[352984015,1739475056160,-707.54,0.00013779,2]
[352984017,1739475056170,-500.0,0.00013779,2]
[352984019,1739475056180,-500.0,0.00013779,2]
[352984021,1739475056189,-500.0,0.00013779,2]
[352984023,1739475056199,-500.0,0.00013779,2]
[352984025,1739475056209,-500.0,0.00013779,2]
[352984027,1739475056219,-799.27,0.0001378,2]
[352984029,1739475056228,-500.0,0.0001378,2]
[352984031,1739475056240,-638.72155357,0.0001378,2]
[352984033,1739475056255,-422.06867259,0.0001378,2]
[352984035,1739475056265,-500.0,0.0001378,2]
[352984037,1739475056274,-500.0,0.0001378,2]
[352984039,1739475056285,-500.0,0.0001378,2]
[352984041,1739475056295,-500.0,0.0001378,2]
[352984043,1739475056306,-240.74162542,0.0001378,2]
[352984045,1739475056315,-512.14562174,0.0001378,2]
[352984047,1739475056326,-500.0,0.0001378,2]
[352984049,1739475056338,-287.26715094,0.0001378,2]
[352984052,1739475056348,-500.0,0.0001378,2]
[352984053,1739475056360,-500.0,0.0001378,2]
[352984056,1739475056370,-500.0,0.0001378,2]
[352984058,1739475056380,-726.6,0.0001378,2]
[352984059,1739475056389,-1049.15,0.0001378,2]
[352984061,1739475056400,-500.0,0.0001378,2]
[352984063,1739475056409,-654.08,0.0001378,2]
[352984065,1739475056418,-500.0,0.0001378,2]
[352984067,1739475056428,-500.0,0.0001378,2]
[352984069,1739475056438,-500.0,0.0001378,2]
[352984071,1739475056447,-500.0,0.0001378,2]
[352984073,1739475056457,-750.5,0.0001378,2]
[352984075,1739475056466,-500.0,0.0001378,2]
[352984077,1739475056475,-500.0,0.0001378,2]
[352984079,1739475056486,-500.0,0.0001378,2]
[352984080,1739475056495,-500.0,0.0001378,2]
[352984081,1739475056505,-500.0,0.0001378,2]
[352984082,1739475056515,-959.51,0.0001378,2]
[352984083,1739475056525,-500.0,0.0001378,2]
[352984084,1739475056534,-500.0,0.0001378,2]
[352984085,1739475056543,-500.0,0.0001378,2]
[352984086,1739475056555,-500.0,0.0001378,2]
[352984087,1739475056564,-500.0,0.0001378,2]
[352984088,1739475056574,-1051.8,0.0001378,2]
[352984089,1739475056583,-500.0,0.0001378,2]
[352984090,1739475056593,-1058.29,0.0001378,2]
[352984091,1739475056603,-171.270392,0.0001378,2]
[352984093,1739475056612,-171.270392,0.0001378,2]
[352984095,1739475056622,-163.626729,0.0001378,2]
[352984097,1739475056631,-171.270392,0.0001378,2]
[352984099,1739475056640,-163.626729,0.0001378,2]
[352984101,1739475056649,-171.270392,0.0001378,2]
[352984103,1739475056658,-163.626729,0.0001378,2]
[352984105,1739475056668,-151.0,0.0001378,2]
[352984107,1739475056678,-163.626729,0.0001378,2]
[352984109,1739475056687,-151.0,0.0001378,2]
[352984110,1739475056696,-746.91,0.0001378,2]
[352984112,1739475056706,-214.252575,0.0001378,2]
[352984115,1739475056716,-171.270392,0.0001378,2]
[352984116,1739475056726,-171.270392,0.0001378,2]
[352984118,1739475056736,-163.626729,0.0001378,2]
[352984120,1739475056745,-171.270392,0.0001378,2]
[352984123,1739475056758,-171.270392,0.0001378,2]
[352984125,1739475056767,-163.626729,0.0001378,2]
[352984127,1739475056777,-163.626729,0.0001378,2]
[352984129,1739475056786,-163.626729,0.0001378,2]
[352984130,1739475056796,-170.630765,0.0001378,2]
[352984132,1739475056806,-500.0,0.0001378,2]
[352984134,1739475056815,-1109.64,0.0001378,2]
[352984136,1739475056825,-500.0,0.0001378,2]
[352984138,1739475056836,-500.0,0.0001378,2]
[352984140,1739475056846,-151.0,0.0001378,2]
[352984142,1739475056856,-256.424552,0.0001378,2]
[352984144,1739475056865,-1470.27,0.0001378,2]
[352984146,1739475056875,-500.0,0.0001378,2]
[352984148,1739475056885,-500.0,0.0001378,2]
[352984150,1739475056894,-602.47,0.0001378,2]
[352984153,1739475056904,-500.0,0.0001378,2]
[352984154,1739475056914,-500.0,0.0001378,2]
[352984157,1739475056924,-500.0,0.0001378,2]
[352984158,1739475056934,-1132.4,0.0001378,2]
[352984160,1739475056943,-151.0,0.0001378,2]
[352984162,1739475056953,-151.0,0.0001378,2]
[352984164,1739475056963,-151.0,0.0001378,2]
[352984166,1739475056972,-151.0,0.0001378,2]
[352984168,1739475056982,-500.0,0.0001378,2]
[352984170,1739475056992,-500.0,0.0001378,2]
[352984172,1739475057002,-1122.76,0.0001378,2]
[352984174,1739475057011,-500.0,0.0001378,2]
[352984176,1739475057021,-590.71,0.0001378,2]
[352984178,1739475057031,-500.0,0.0001378,2]
[352984181,1739475057041,-664.27,0.0001378,2]
[352984182,1739475057050,-500.0,0.0001378,2]
[352984185,1739475057060,-500.0,0.0001378,2]
[352984187,1739475057070,-500.0,0.0001378,2]
[352984189,1739475057080,-556.20864813,0.0001378,2]
[352984191,1739475057090,-500.0,0.0001378,2]
[352984192,1739475057099,-1851.87,0.0001378,2]
[352984194,1739475057108,-500.0,0.0001378,2]
[352984196,1739475057117,-500.0,0.0001378,2]
[352984198,1739475057127,-500.0,0.0001378,2]
[352984200,1739475057136,-500.0,0.0001378,2]
[352984202,1739475057146,-500.0,0.0001378,2]
[352984204,1739475057155,-547.17,0.0001378,2]
[352984206,1739475057165,-942.14,0.0001378,2]
[352984208,1739475057175,-500.0,0.0001378,2]
[352984210,1739475057183,-500.0,0.0001378,2]
[352984212,1739475057193,-500.0,0.0001378,2]
[352984214,1739475057203,-500.0,0.0001378,2]
[352984216,1739475057212,-1024.37,0.0001378,2]
[352984218,1739475057222,-500.0,0.0001378,2]
[352984220,1739475057232,-267.053296,0.0001378,2]
[352984222,1739475057241,-500.0,0.0001378,2]
[352984224,1739475057251,-500.0,0.0001378,2]
[352984226,1739475057260,-267.053296,0.0001378,2]
[352984228,1739475057270,-267.053296,0.0001378,2]
[352984230,1739475057280,-267.053296,0.0001378,2]
[352984232,1739475057290,-500.0,0.0001378,2]
[352984234,1739475057300,-1082.48,0.0001378,2]
[352984236,1739475057310,-915.31,0.0001378,2]
[352984238,1739475057319,-500.0,0.0001378,2]
[352984240,1739475057329,-267.053296,0.0001378,2]
[352984242,1739475057339,-267.053296,0.0001378,2]
[352984244,1739475057348,-267.053296,0.0001378,2]
[352984246,1739475057358,-779.07,0.0001378,2]
[352984248,1739475057368,-267.053296,0.0001378,2]
[352984250,1739475057377,-1156.23,0.0001378,2]
[352984252,1739475057387,-500.0,0.0001378,2]
[352984254,1739475057397,-500.0,0.0001378,2]
[352984256,1739475057406,-500.0,0.0001378,2]
[352984258,1739475057415,-500.0,0.0001378,2]
[352984260,1739475057424,-1175.21,0.0001378,2]
[352984262,1739475057434,-501.41709868,0.0001378,2]
[352984278,1739475057578,-794.57,0.0001378,2]
[352984280,1739475057588,-500.0,0.0001378,2]
[352984282,1739475057598,-500.0,0.0001378,2]
[352984284,1739475057607,-500.0,0.0001378,2]
[352984286,1739475057616,-1572.9,0.0001378,2]
[352984287,1739475057626,-500.0,0.0001378,2]
[352984289,1739475057635,-500.0,0.0001378,2]
[352984291,1739475057644,-500.0,0.0001378,2]
[352984293,1739475057653,-500.0,0.0001378,2]
[352984295,1739475057662,-500.0,0.0001378,2]
[352984297,1739475057671,-503.50855532,0.0001378,2]
[352984299,1739475057681,-378.15364195,0.0001378,2]
[352984301,1739475057690,-500.0,0.0001378,2]
[352984303,1739475057699,-1592.64,0.0001378,2]
[352984305,1739475057707,-703.39,0.0001378,2]
[352984307,1739475057716,-500.0,0.0001378,2]
[352984309,1739475057725,-500.0,0.0001378,2]
[352984311,1739475057734,-958.04,0.0001378,2]
[352984313,1739475057743,-500.0,0.0001378,2]
[352984315,1739475057753,-500.0,0.0001378,2]
[352984317,1739475057763,-610.65,0.0001378,2]
[352984319,1739475057773,-739.92,0.0001378,2]
[352984321,1739475057783,-575.1,0.0001378,2]
[352984323,1739475057792,-223.11250025,0.0001378,2]
[352984325,1739475057801,-500.0,0.0001378,2]
[352984327,1739475057810,-500.0,0.0001378,2]
[352984329,1739475057819,-241.2799528,0.0001378,2]
[352984331,1739475057829,-619.9,0.0001378,2]
[352984333,1739475057839,-500.0,0.0001378,2]
[352984335,1739475057857,-500.0,0.0001378,2]
[352984336,1739475057866,-588.16,0.0001378,2]
[352984338,1739475057875,-500.0,0.0001378,2]
[352984340,1739475057885,-830.4,0.0001378,2]
[352984342,1739475057894,-546.31,0.0001378,2]
[352984344,1739475057903,-306.53619655,0.0001378,2]
[352984346,1739475057912,-178.32671515,0.0001378,2]
[352984348,1739475057922,-500.0,0.0001378,2]
[352984350,1739475057931,-712.02,0.0001378,2]
[352984352,1739475057941,-433.4460359,0.0001378,2]
[352984354,1739475057950,-500.0,0.0001378,2]
[352984356,1739475057960,-724.2,0.0001378,2]
[352984358,1739475057969,-500.0,0.0001378,2]
[352984360,1739475057979,-244.663083,0.0001378,2]
[352984363,1739475057988,-952.21,0.0001378,2]
[352984365,1739475057997,-500.0,0.0001378,2]
[352984367,1739475058008,-775.03,0.0001378,2]
[352984369,1739475058018,-500.0,0.0001378,2]
[352984371,1739475058027,-500.0,0.0001378,2]
[352984373,1739475058037,-762.98,0.0001378,2]
[352984375,1739475058047,-500.0,0.0001378,2]
[352984377,1739475058058,-573.88,0.0001378,2]
[352984379,1739475058067,-624.29,0.0001378,2]
[352984381,1739475058076,-500.0,0.0001378,2]
[352984382,1739475058086,-2514.14,0.0001378,2]
[352984385,1739475058095,-500.0,0.0001378,2]
[352984387,1739475058105,-500.0,0.0001378,2]
[352984388,1739475058115,-500.0,0.0001378,2]
[352984390,1739475058124,-745.85,0.0001378,2]
[352984392,1739475058134,-500.0,0.0001378,2]
[352984394,1739475058145,-1770.9,0.0001378,2]
[352984396,1739475058155,-500.0,0.0001378,2]
[352984399,1739475058166,-500.0,0.0001378,2]
[352984401,1739475058176,-500.0,0.0001378,2]
[352984403,1739475058186,-976.85,0.0001378,2]
[352984405,1739475058195,-500.0,0.0001378,2]
[352984406,1739475058205,-500.0,0.0001378,2]
[352984408,1739475058215,-500.0,0.0001378,2]
[352984410,1739475058224,-700.26,0.0001378,2]
[352984412,1739475058237,-1919.22,0.0001378,2]
[352984415,1739475058247,-500.0,0.0001378,2]
[352984417,1739475058257,-901.17,0.0001378,2]
[352984419,1739475058267,-2037.16,0.0001378,2]
[352984421,1739475058277,-687.13,0.0001378,2]
[352984423,1739475058286,-500.0,0.0001378,2]
[352984425,1739475058295,-500.0,0.0001378,2]
[352984427,1739475058305,-1145.15,0.0001378,2]
[352984429,1739475058314,-581.75,0.0001378,2]
[352984431,1739475058324,-1572.74,0.0001378,2]
[352984433,1739475058334,-500.0,0.0001378,2]
[352984435,1739475058343,-725.91,0.0001378,2]
[352984437,1739475058353,-877.92,0.0001378,2]
[352984438,1739475058362,-239.14358464,0.0001378,2]
[352984440,1739475058371,-508.03380309,0.0001378,2]
[352984442,1739475058380,-500.0,0.0001378,2]
[352984444,1739475058390,-500.0,0.0001378,2]
[352984446,1739475058399,-500.0,0.0001378,2]
[352984448,1739475058409,-239.33398666,0.0001378,2]
[352984450,1739475058418,-210.5014091,0.0001378,2]
[352984452,1739475058428,-719.35,0.0001378,2]
[352984454,1739475058437,-3446.7,0.0001378,2]
[352984456,1739475058446,-639.1,0.0001378,2]
[352984458,1739475058456,-500.0,0.0001378,2]
[352984461,1739475058468,-813.77,0.0001378,2]
[352984462,1739475058480,-500.0,0.0001378,2]
[352984464,1739475058489,-2137.44,0.0001378,2]
[352984466,1739475058498,-500.0,0.0001378,2]
[352984468,1739475058507,-500.0,0.0001378,2]
[352984470,1739475058518,-500.0,0.0001378,2]
[352984472,1739475058527,-500.0,0.0001378,2]
[352984474,1739475058536,-534.03,0.0001378,2]
[352984476,1739475058546,-3190.37,0.0001378,2]
[352984478,1739475058557,-500.0,0.0001378,2]
[352984480,1739475058566,-516.35,0.0001378,2]
[352984483,1739475058575,-500.0,0.0001378,2]
[352984484,1739475058585,-1958.68,0.0001378,2]
[352984487,1739475058595,-566.39745874,0.0001378,2]
[352984489,1739475058604,-1221.78,0.0001378,2]
[352984490,1739475058613,-500.0,0.0001378,2]
[352984492,1739475058622,-500.0,0.0001378,2]
[352984494,1739475058632,-2458.28,0.0001378,2]
[352984497,1739475058641,-504.09324273,0.0001378,2]
[352984499,1739475058651,-560.19,0.0001378,2]
[352984501,1739475058660,-500.0,0.0001378,2]
[352984503,1739475058670,-647.32,0.0001378,2]
[352984505,1739475058680,-591.03,0.0001378,2]
[352984507,1739475058690,-500.0,0.0001378,2]
[352984509,1739475058699,-500.0,0.0001378,2]
[352984511,1739475058709,-500.0,0.0001378,2]
[352984512,1739475058719,-151.0,0.0001378,2]
[352984514,1739475058728,-151.0,0.0001378,2]
[352984516,1739475058738,-500.0,0.0001378,2]
[352984519,1739475058748,-151.0,0.0001378,2]
[352984521,1739475058757,-1556.13,0.0001378,2]
[352984522,1739475058767,-247.084,0.0001378,2]
[352984524,1739475058776,-1513.41,0.0001378,2]
[352984527,1739475058786,-500.0,0.0001378,2]
[352984528,1739475058795,-500.0,0.0001378,2]
[352984530,1739475058805,-1000.01,0.0001378,2]
[352984532,1739475058815,-500.0,0.0001378,2]
[352984534,1739475058824,-527.13064871,0.0001378,2]
[352984536,1739475058834,-500.0,0.0001378,2]
[352984538,1739475058843,-500.0,0.0001378,2]
[352984540,1739475058852,-500.0,0.0001378,2]
[352984542,1739475058862,-500.0,0.0001378,2]
[352984544,1739475058871,-500.0,0.0001378,2]
[352984546,1739475058882,-2028.54,0.0001378,2]
[352984548,1739475058891,-3409.92,0.0001378,2]
[352984550,1739475058900,-930.38,0.0001378,2]
[352984552,1739475058909,-3086.3,0.0001378,2]
[352984554,1739475058918,-500.0,0.0001378,2]
[352984556,1739475058928,-637.57,0.0001378,2]
[352984558,1739475058937,-500.0,0.0001378,2]
[352984560,1739475058947,-500.0,0.0001378,2]
[352984562,1739475058956,-259.55928313,0.0001378,2]
[352984564,1739475058965,-2588.14,0.0001378,2]
[352984566,1739475058974,-1014.99,0.0001378,2]
[352984568,1739475058984,-500.0,0.0001378,2]
[352984570,1739475058993,-500.0,0.0001378,2]
[352984573,1739475059003,-3670.51,0.0001378,2]
[352984575,1739475059012,-500.0,0.0001378,2]
[352984576,1739475059022,-1003.87,0.0001378,2]
[352984578,1739475059032,-500.0,0.0001378,2]
[352984579,1739475059041,-500.0,0.0001378,2]
[352984580,1739475059050,-506.57233409,0.0001378,2]
[352984581,1739475059059,-2182.31,0.0001378,2]
[352984583,1739475059068,-2545.97,0.0001378,2]
[352984585,1739475059078,-1494.82,0.0001378,2]
[352984587,1739475059087,-506.29107573,0.0001378,2]
[352984589,1739475059096,-500.0,0.0001378,2]
[352984591,1739475059105,-500.0,0.0001378,2]
[352984593,1739475059114,-500.0,0.0001378,2]
[352984595,1739475059123,-2931.75,0.0001378,2]
[352984597,1739475059133,-512.45284315,0.0001378,2]
[352984599,1739475059143,-1132.54,0.0001378,2]
[352984601,1739475059152,-2737.88,0.0001378,2]
[352984603,1739475059161,-667.0,0.0001378,2]
[352984605,1739475059171,-500.0,0.0001378,2]
[352984607,1739475059180,-2527.52,0.0001378,2]
[352984609,1739475059189,-1215.71,0.0001378,2]
[352984611,1739475059199,-500.0,0.0001378,2]
[352984613,1739475059208,-500.0,0.0001378,2]
[352984615,1739475059217,-1595.94,0.0001378,2]
[352984617,1739475059226,-500.0,0.0001378,2]
[352984619,1739475059236,-500.0,0.0001378,2]
[352984621,1739475059245,-667.24,0.0001378,2]
[352984623,1739475059254,-500.0,0.0001378,2]
[352984625,1739475059264,-500.0,0.0001378,2]
[352984627,1739475059273,-500.0,0.0001378,2]
[352984629,1739475059283,-1016.15,0.0001378,2]
[352984631,1739475059292,-500.0,0.0001378,2]
[352984634,1739475059302,-2460.47,0.0001378,2]
[352984635,1739475059311,-1395.37,0.0001378,2]
[352984638,1739475059320,-500.0,0.0001378,2]
[352984640,1739475059331,-500.0,0.0001378,2]
[352984642,1739475059340,-500.0,0.0001378,2]
[352984644,1739475059349,-3656.76,0.0001378,2]
[352984646,1739475059358,-500.0,0.0001378,2]
[352984648,1739475059368,-1790.89,0.0001378,2]
[352984650,1739475059377,-1052.8,0.0001378,2]
[352984652,1739475059387,-500.0,0.0001378,2]
[352984654,1739475059396,-1242.64,0.0001378,2]
[352984656,1739475059405,-675.2,0.0001378,2]
[352984658,1739475059415,-500.0,0.0001378,2]
[352984660,1739475059424,-500.0,0.0001378,2]
[352984662,1739475059433,-500.0,0.0001378,2]
[352984664,1739475059442,-360.90886,0.0001378,2]
[352984666,1739475059451,-3668.44,0.0001378,2]
[352984667,1739475059461,-360.90886,0.0001378,2]
[352984670,1739475059472,-360.90886,0.0001378,2]
[352984671,1739475059485,-1539.64,0.0001378,2]
[352984674,1739475059494,-360.90886,0.0001378,2]
[352984675,1739475059503,-637.11,0.0001378,2]
[352984677,1739475059512,-1108.42,0.0001378,2]
[352984679,1739475059521,-360.90886,0.0001378,2]
[352984681,1739475059531,-360.90886,0.0001378,2]
[352984683,1739475059540,-360.90886,0.0001378,2]
[352984685,1739475059549,-360.90886,0.0001378,2]
[352984687,1739475059562,-1175.11,0.0001378,2]
[352984689,1739475059571,-789.536407,0.0001378,2]
[352984691,1739475059580,-789.536407,0.0001378,2]
[352984693,1739475059590,-343.52763871,0.0001378,2]
[352984696,1739475059600,-789.536407,0.0001378,2]
[352984698,1739475059609,-789.536407,0.0001378,2]
[352984699,1739475059619,-3058.34,0.0001378,2]
[352984701,1739475059628,-500.0,0.0001378,2]
[352984704,1739475059638,-780.58,0.0001378,2]
[352984720,1739475059782,-789.536407,0.0001378,2]
[352984722,1739475059794,-789.536407,0.0001378,2]
[352984724,1739475059805,-789.536407,0.0001378,2]
[352984726,1739475059816,-789.536407,0.0001378,2]
[352984728,1739475059826,-500.0,0.0001378,2]
[352984730,1739475059836,-500.0,0.0001378,2]
[352984732,1739475059846,-610.29,0.0001378,2]
[352984734,1739475059856,-1056.17,0.0001378,2]
[352984736,1739475059870,-500.0,0.0001378,2]
[352984738,1739475059880,-2187.98,0.0001378,2]
[352984740,1739475059889,-500.0,0.0001378,2]
[352984742,1739475059899,-500.0,0.0001378,2]
[352984744,1739475059907,-500.0,0.0001378,2]
[352984746,1739475059917,-2040.68,0.0001378,2]
[352984748,1739475059927,-190.054601,0.0001378,2]
[352984750,1739475059936,-2159.87,0.0001378,2]
[352984752,1739475059946,-190.054601,0.0001378,2]
[352984754,1739475059956,-505.40691146,0.0001378,2]
[352984756,1739475059966,-575.34,0.0001378,2]
[352984758,1739475059975,-925.06,0.0001378,2]
[352984760,1739475059984,-190.054601,0.0001378,2]
[352984762,1739475059994,-190.054601,0.0001378,2]
[352984764,1739475060004,-743.79,0.0001378,2]
[352984766,1739475060013,-500.0,0.0001378,2]
[352984768,1739475060023,-500.0,0.0001378,2]
[352984770,1739475060032,-190.054601,0.0001378,2]
[352984772,1739475060042,-500.0,0.0001378,2]
[352984774,1739475060052,-190.054601,0.0001378,2]
[352984776,1739475060062,-823.33,0.0001378,2]
[352984778,1739475060071,-190.054601,0.0001378,2]
[352984780,1739475060081,-190.054601,0.0001378,2]
[352984782,1739475060091,-511.99,0.0001378,2]
[352984784,1739475060101,-500.0,0.0001378,2]
[352984786,1739475060111,-2037.06,0.0001378,2]
[352984788,1739475060121,-500.0,0.0001378,2]
[352984790,1739475060130,-1360.94,0.0001378,2]
[352984792,1739475060140,-500.0,0.0001378,2]
[352984794,1739475060150,-500.0,0.0001378,2]
[352984796,1739475060160,-500.0,0.0001378,2]
[352984798,1739475060169,-500.0,0.0001378,2]
[352984800,1739475060178,-500.0,0.0001378,2]
[352984801,1739475060187,-802.49,0.0001378,2]
[352984803,1739475060197,-646.80844775,0.0001378,2]
[352984805,1739475060207,-500.0,0.0001378,2]
[352984807,1739475060216,-1155.5,0.0001378,2]
[352984809,1739475060226,-500.0,0.0001378,2]
[352984811,1739475060235,-500.0,0.0001378,2]
[352984813,1739475060245,-500.0,0.0001378,2]
[352984815,1739475060255,-500.0,0.0001378,2]
[352984817,1739475060266,-1376.21,0.0001378,2]
[352984819,1739475060276,-500.0,0.0001378,2]
[352984821,1739475060286,-500.0,0.0001378,2]
[352984823,1739475060295,-637.08,0.0001378,2]
[352984825,1739475060306,-500.0,0.0001378,2]
[352984827,1739475060315,-475.76955501,0.0001378,2]
[352984829,1739475060326,-500.0,0.0001378,2]
[352984831,1739475060335,-2436.15,0.0001378,2]
[352984833,1739475060345,-500.0,0.0001378,2]
[352984835,1739475060354,-507.47111046,0.0001378,2]
[352984837,1739475060363,-2924.42,0.0001378,2]
[352984839,1739475060372,-500.0,0.0001378,2]
[352984841,1739475060381,-500.0,0.0001378,2]
[352984843,1739475060390,-981.7,0.0001378,2]
[352984845,1739475060399,-500.0,0.0001378,2]